[Event "Titled Tuesday Blitz May 10 Early 2022"]
[White "Bach, Ngoc Thuy Duong"]
[Black "Prieto Aranguren, Alain"]
[WhiteFideId "12408956"]
[BlackFideId "2268906"]
[WhiteElo "1862"]
[BlackElo "2235"]
[Result "0-1"]
[Round "03"]
[TimeControl "180+1"]
[Date "2022.05.11"]
[WhiteClock "0:00:02"]
[BlackClock "0:00:44"]

1. d4 {[%clk 0:03:00]}  Nf6 {[%clk 0:02:59]} 2. Nf3 {[%clk 0:03:00]}  g6 {[%clk 0:03:00]} 3. Nbd2 {[%clk 0:03:00]}  Bg7 {[%clk 0:03:01]} 4. e4 {[%clk 0:02:58]}  O-O {[%clk 0:03:02]} 5. Bd3 {[%clk 0:02:45]}  c5 {[%clk 0:03:01]} 6. e5 {[%clk 0:02:43]}  Nd5 {[%clk 0:03:00]} 7. Be4 {[%clk 0:02:25]}  e6 {[%clk 0:02:51]} 8. dxc5 {[%clk 0:02:17]}  Qc7 {[%clk 0:02:49]} 9. O-O {[%clk 0:02:14]}  Qxc5 {[%clk 0:02:48]} 10. a3 {[%clk 0:01:37]}  Nc6 {[%clk 0:02:46]} 11. Nb3 {[%clk 0:01:31]}  Qe7 {[%clk 0:02:41]} 12. c4 {[%clk 0:01:31]}  Nb6 {[%clk 0:02:32]} 13. c5 {[%clk 0:01:26]}  Nd5 {[%clk 0:02:28]} 14. Bg5 {[%clk 0:01:18]}  f6 {[%clk 0:02:22]} 15. Bxd5 {[%clk 0:01:03]}  fxg5 {[%clk 0:02:21]} 16. Bxc6 {[%clk 0:01:02]}  bxc6 {[%clk 0:02:16]} 17. Qd4 {[%clk 0:00:55]}  Rb8 {[%clk 0:02:12]} 18. Na5 {[%clk 0:00:48]}  Rf4 {[%clk 0:02:09]} 19. Qc3 {[%clk 0:00:35]}  g4 {[%clk 0:02:01]} 20. Nd2 {[%clk 0:00:34]}  Qg5 {[%clk 0:01:53]} 21. Nac4 {[%clk 0:00:27]}  Ba6 {[%clk 0:01:47]} 22. Rfe1 {[%clk 0:00:24]}  h5 {[%clk 0:01:44]} 23. b4 {[%clk 0:00:17]}  h4 {[%clk 0:01:43]} 24. Ne4 {[%clk 0:00:16]}  Qf5 {[%clk 0:01:36]} 25. Ned6 {[%clk 0:00:10]}  Qh5 {[%clk 0:01:23]} 26. Re4 {[%clk 0:00:05]}  Rxe4 {[%clk 0:01:13]} 27. Nxe4 {[%clk 0:00:06]}  Bxc4 {[%clk 0:01:13]} 28. Qxc4 {[%clk 0:00:07]}  Qxe5 {[%clk 0:01:09]} 29. Rd1 {[%clk 0:00:07]}  a5 {[%clk 0:00:58]} 30. h3 {[%clk 0:00:04]}  axb4 {[%clk 0:00:57]} 31. axb4 {[%clk 0:00:03]}  gxh3 {[%clk 0:00:56]} 32. gxh3 {[%clk 0:00:03]}  Rf8 {[%clk 0:00:45]} 33. Rxd7 {[%clk 0:00:03]}  Rf4 {[%clk 0:00:44]} 34. Rd8+ {[%clk 0:00:02]}  Kh7 {[%clk 0:00:44]} 0-1


[Site "https://www.chess.com"]

[Event "Titled Tuesday Blitz May 10 Early 2022"]
[White "Baches Garcia, Guillermo"]
[Black "Mica, Marek"]
[WhiteFideId "2209764"]
[BlackFideId "382884"]
[WhiteElo "2503"]
[BlackElo "2100"]
[Result "1-0"]
[Round "03"]
[TimeControl "180+1"]
[Date "2022.05.11"]
[WhiteClock "0:00:39"]
[BlackClock "0:00:08"]

1. e4 {[%clk 0:03:00]}  e6 {[%clk 0:02:59]} 2. Nf3 {[%clk 0:03:00]}  d5 {[%clk 0:03:00]} 3. exd5 {[%clk 0:03:01]}  exd5 {[%clk 0:03:01]} 4. d4 {[%clk 0:03:02]}  Bd6 {[%clk 0:03:01]} 5. c4 {[%clk 0:03:01]}  dxc4 {[%clk 0:02:59]} 6. Bxc4 {[%clk 0:03:01]}  Nf6 {[%clk 0:02:59]} 7. Nc3 {[%clk 0:03:01]}  Nbd7 {[%clk 0:02:56]} 8. O-O {[%clk 0:03:00]}  O-O {[%clk 0:02:54]} 9. Bg5 {[%clk 0:02:57]}  Nb6 {[%clk 0:02:52]} 10. Bb3 {[%clk 0:02:57]}  h6 {[%clk 0:02:49]} 11. Bh4 {[%clk 0:02:56]}  g5 {[%clk 0:02:45]} 12. Bg3 {[%clk 0:02:56]}  Bf5 {[%clk 0:02:35]} 13. Ne5 {[%clk 0:02:50]}  a5 {[%clk 0:01:44]} 14. Qf3 {[%clk 0:02:44]}  Bc8 {[%clk 0:00:50]} 15. h4 {[%clk 0:02:31]}  a4 {[%clk 0:00:42]} 16. hxg5 {[%clk 0:02:23]}  hxg5 {[%clk 0:00:43]} 17. Bc2 {[%clk 0:02:16]}  Be6 {[%clk 0:00:11]} 18. Ne4 {[%clk 0:02:03]}  Nxe4 {[%clk 0:00:10]} 19. Qxe4 {[%clk 0:02:03]}  f5 {[%clk 0:00:10]} 20. Qe2 {[%clk 0:01:53]}  f4 {[%clk 0:00:09]} 21. Qh5 {[%clk 0:01:42]}  Qe7 {[%clk 0:00:09]} 22. Ng6 {[%clk 0:01:39]}  Qg7 {[%clk 0:00:09]} 23. Nxf8 {[%clk 0:01:36]}  Rxf8 {[%clk 0:00:10]} 24. Bh2 {[%clk 0:01:35]}  Nd5 {[%clk 0:00:10]} 25. Rfe1 {[%clk 0:01:27]}  Nf6 {[%clk 0:00:10]} 26. Qg6 {[%clk 0:01:25]}  Bd5 {[%clk 0:00:10]} 27. Qxg7+ {[%clk 0:01:19]}  Kxg7 {[%clk 0:00:11]} 28. Bxa4 {[%clk 0:01:19]}  c6 {[%clk 0:00:11]} 29. Bb3 {[%clk 0:01:18]}  Kg6 {[%clk 0:00:10]} 30. Bxd5 {[%clk 0:01:14]}  cxd5 {[%clk 0:00:10]} 31. g3 {[%clk 0:01:13]}  Kf5 {[%clk 0:00:09]} 32. Kg2 {[%clk 0:01:10]}  Ne4 {[%clk 0:00:09]} 33. f3 {[%clk 0:01:03]}  Nxg3 {[%clk 0:00:10]} 34. Bxg3 {[%clk 0:01:03]}  fxg3 {[%clk 0:00:11]} 35. Re2 {[%clk 0:01:02]}  Rc8 {[%clk 0:00:10]} 36. Rh1 {[%clk 0:01:01]}  Bf4 {[%clk 0:00:10]} 37. Rh7 {[%clk 0:01:00]}  Rc1 {[%clk 0:00:10]} 38. Rxb7 {[%clk 0:00:58]}  g4 {[%clk 0:00:10]} 39. Rf7+ {[%clk 0:00:56]}  Kg5 {[%clk 0:00:09]} 40. Rg7+ {[%clk 0:00:55]}  Kf5 {[%clk 0:00:10]} 41. Rxg4 {[%clk 0:00:47]}  Ra1 {[%clk 0:00:09]} 42. Re8 {[%clk 0:00:44]}  Bd6 {[%clk 0:00:08]} 43. Rd8 {[%clk 0:00:40]}  Bc7 {[%clk 0:00:07]} 44. Rd7 {[%clk 0:00:40]}  Kf6 {[%clk 0:00:08]} 45. Rxc7 {[%clk 0:00:39]} 1-0


[Site "https://www.chess.com"]

[Event "Titled Tuesday Blitz May 10 Early 2022"]
[White "Bacrot, Etienne"]
[Black "De Silva, L M S T"]
[WhiteFideId "605506"]
[BlackFideId "9953698"]
[WhiteElo "2673"]
[BlackElo "1631"]
[Result "1-0"]
[Round "03"]
[TimeControl "180+1"]
[Date "2022.05.10"]
[WhiteClock "0:01:23"]
[BlackClock "0:01:22"]

1. e4 {[%clk 0:03:00]}  e5 {[%clk 0:03:00]} 2. Nf3 {[%clk 0:03:00]}  Nc6 {[%clk 0:03:01]} 3. Bb5 {[%clk 0:02:59]}  a6 {[%clk 0:03:01]} 4. Ba4 {[%clk 0:02:59]}  Nf6 {[%clk 0:03:01]} 5. O-O {[%clk 0:02:59]}  Be7 {[%clk 0:03:02]} 6. Re1 {[%clk 0:02:59]}  b5 {[%clk 0:03:02]} 7. Bb3 {[%clk 0:02:59]}  O-O {[%clk 0:03:03]} 8. Nc3 {[%clk 0:02:56]}  d6 {[%clk 0:03:00]} 9. h3 {[%clk 0:02:55]}  Na5 {[%clk 0:02:59]} 10. d4 {[%clk 0:02:54]}  Nxb3 {[%clk 0:02:59]} 11. axb3 {[%clk 0:02:52]}  Bb7 {[%clk 0:02:55]} 12. Bg5 {[%clk 0:02:38]}  b4 {[%clk 0:02:38]} 13. Bxf6 {[%clk 0:02:27]}  Bxf6 {[%clk 0:02:39]} 14. Nd5 {[%clk 0:02:26]}  Bxd5 {[%clk 0:02:39]} 15. exd5 {[%clk 0:02:26]}  Re8 {[%clk 0:02:27]} 16. Qd3 {[%clk 0:02:08]}  a5 {[%clk 0:02:18]} 17. dxe5 {[%clk 0:01:52]}  Bxe5 {[%clk 0:02:17]} 18. Nxe5 {[%clk 0:01:49]}  dxe5 {[%clk 0:02:14]} 19. Qb5 {[%clk 0:01:46]}  Qd6 {[%clk 0:01:30]} 20. Rxa5 {[%clk 0:01:44]}  Rad8 {[%clk 0:01:28]} 21. Qc4 {[%clk 0:01:38]}  f5 {[%clk 0:01:22]} 22. Rc5 {[%clk 0:01:36]}  Re7 {[%clk 0:01:22]} 23. Rc6 {[%clk 0:01:23]} 1-0


[Site "https://www.chess.com"]

[Event "Titled Tuesday Blitz May 10 Early 2022"]
[White "Beerdsen, Thomas"]
[Black "Zhigalko, Sergei"]
[WhiteFideId "1030108"]
[BlackFideId "13502956"]
[WhiteElo "2585"]
[BlackElo "2662"]
[Result "1-0"]
[Round "03"]
[TimeControl "180+1"]
[Date "2022.05.10"]
[WhiteClock "0:00:59"]
[BlackClock "0:00:07"]

1. e4 {[%clk 0:03:00]}  c5 {[%clk 0:02:58]} 2. Nf3 {[%clk 0:03:00]}  Nc6 {[%clk 0:02:58]} 3. Bc4 {[%clk 0:03:01]}  Nf6 {[%clk 0:02:57]} 4. e5 {[%clk 0:03:01]}  d5 {[%clk 0:02:54]} 5. Bb5 {[%clk 0:03:00]}  Nd7 {[%clk 0:02:47]} 6. Bxc6 {[%clk 0:02:53]}  bxc6 {[%clk 0:02:48]} 7. d3 {[%clk 0:02:52]}  e6 {[%clk 0:02:32]} 8. O-O {[%clk 0:02:44]}  Rb8 {[%clk 0:02:28]} 9. b3 {[%clk 0:02:43]}  c4 {[%clk 0:02:21]} 10. bxc4 {[%clk 0:02:33]}  dxc4 {[%clk 0:02:20]} 11. dxc4 {[%clk 0:02:34]}  Ba6 {[%clk 0:01:57]} 12. Qd4 {[%clk 0:02:24]}  Qb6 {[%clk 0:01:47]} 13. Qf4 {[%clk 0:02:12]}  Qc5 {[%clk 0:01:00]} 14. Rd1 {[%clk 0:01:51]}  Qxc4 {[%clk 0:00:55]} 15. Qg3 {[%clk 0:01:47]}  Qxc2 {[%clk 0:00:48]} 16. Nc3 {[%clk 0:01:24]}  Qxc3 {[%clk 0:00:46]} 17. Be3 {[%clk 0:01:22]}  Qa3 {[%clk 0:00:29]} 18. Rac1 {[%clk 0:01:11]}  Be2 {[%clk 0:00:22]} 19. Rxd7 {[%clk 0:01:03]}  Kxd7 {[%clk 0:00:20]} 20. Nd4 {[%clk 0:01:03]}  Bh5 {[%clk 0:00:10]} 21. Qh4 {[%clk 0:00:59]}  Bg6 {[%clk 0:00:08]} 22. Nxc6 {[%clk 0:01:00]}  Rb4 {[%clk 0:00:07]} 23. Qd8# {[%clk 0:00:59]} 1-0


[Site "https://www.chess.com"]

[Event "Titled Tuesday Blitz May 10 Early 2022"]
[White "Bettalli, Francesco"]
[Black "Gatterer, Florian"]
[WhiteFideId "2816453"]
[BlackFideId "811688"]
[WhiteElo "2216"]
[BlackElo "2218"]
[Result "1-0"]
[Round "03"]
[TimeControl "180+1"]
[Date "2022.05.11"]
[WhiteClock "0:00:36"]
[BlackClock "0:00:02"]

1. d4 {[%clk 0:03:00]}  Nf6 {[%clk 0:02:58]} 2. Nc3 {[%clk 0:03:01]}  d5 {[%clk 0:02:55]} 3. Bf4 {[%clk 0:03:01]}  c5 {[%clk 0:02:49]} 4. e3 {[%clk 0:02:57]}  cxd4 {[%clk 0:02:45]} 5. exd4 {[%clk 0:02:58]}  a6 {[%clk 0:02:44]} 6. Nf3 {[%clk 0:02:53]}  Nc6 {[%clk 0:02:44]} 7. Be2 {[%clk 0:02:53]}  Bg4 {[%clk 0:02:41]} 8. O-O {[%clk 0:02:54]}  e6 {[%clk 0:02:41]} 9. Ne5 {[%clk 0:02:53]}  Bxe2 {[%clk 0:02:36]} 10. Nxe2 {[%clk 0:02:54]}  Bd6 {[%clk 0:02:33]} 11. c3 {[%clk 0:02:40]}  O-O {[%clk 0:02:31]} 12. Ng3 {[%clk 0:02:28]}  Qc7 {[%clk 0:02:25]} 13. Re1 {[%clk 0:02:24]}  Nd7 {[%clk 0:02:24]} 14. Nxd7 {[%clk 0:02:04]}  Qxd7 {[%clk 0:02:21]} 15. Bxd6 {[%clk 0:02:05]}  Qxd6 {[%clk 0:02:21]} 16. Qg4 {[%clk 0:02:05]}  Kh8 {[%clk 0:02:06]} 17. Nh5 {[%clk 0:02:04]}  Rg8 {[%clk 0:02:01]} 18. Re3 {[%clk 0:02:04]}  Ne7 {[%clk 0:01:54]} 19. Rh3 {[%clk 0:02:03]}  e5 {[%clk 0:01:20]} 20. dxe5 {[%clk 0:01:51]}  Qxe5 {[%clk 0:01:20]} 21. Nf4 {[%clk 0:01:48]}  h6 {[%clk 0:01:12]} 22. Re3 {[%clk 0:01:45]}  Qf6 {[%clk 0:01:04]} 23. Nh5 {[%clk 0:01:40]}  Qf5 {[%clk 0:00:56]} 24. Qxf5 {[%clk 0:01:36]}  Nxf5 {[%clk 0:00:56]} 25. Re5 {[%clk 0:01:36]}  g6 {[%clk 0:00:53]} 26. Nf6 {[%clk 0:01:36]}  Rgd8 {[%clk 0:00:50]} 27. Rd1 {[%clk 0:01:29]}  Kg7 {[%clk 0:00:48]} 28. Ng4 {[%clk 0:01:17]}  h5 {[%clk 0:00:43]} 29. Ne3 {[%clk 0:01:17]}  Nxe3 {[%clk 0:00:40]} 30. Rxe3 {[%clk 0:01:18]}  Rd7 {[%clk 0:00:40]} 31. Red3 {[%clk 0:01:17]}  Rad8 {[%clk 0:00:39]} 32. Kf1 {[%clk 0:01:17]}  f5 {[%clk 0:00:37]} 33. Rd4 {[%clk 0:01:18]}  Kf6 {[%clk 0:00:36]} 34. f4 {[%clk 0:01:17]}  b5 {[%clk 0:00:31]} 35. Kf2 {[%clk 0:01:16]}  h4 {[%clk 0:00:30]} 36. g3 {[%clk 0:01:15]}  hxg3+ {[%clk 0:00:28]} 37. hxg3 {[%clk 0:01:16]}  Rh8 {[%clk 0:00:28]} 38. Kg2 {[%clk 0:01:16]}  Rdh7 {[%clk 0:00:23]} 39. Rxd5 {[%clk 0:01:06]}  Rh2+ {[%clk 0:00:23]} 40. Kf3 {[%clk 0:01:06]}  Re8 {[%clk 0:00:15]} 41. R1d2 {[%clk 0:00:59]}  Rh1 {[%clk 0:00:14]} 42. Rd6+ {[%clk 0:00:58]}  Re6 {[%clk 0:00:13]} 43. Rxe6+ {[%clk 0:00:53]}  Kxe6 {[%clk 0:00:13]} 44. Re2+ {[%clk 0:00:54]}  Kf6 {[%clk 0:00:12]} 45. Ke3 {[%clk 0:00:52]}  Rd1 {[%clk 0:00:12]} 46. Rd2 {[%clk 0:00:51]}  Rg1 {[%clk 0:00:11]} 47. Kf2 {[%clk 0:00:51]}  Rb1 {[%clk 0:00:11]} 48. a3 {[%clk 0:00:51]}  Ke6 {[%clk 0:00:10]} 49. Kf3 {[%clk 0:00:51]}  a5 {[%clk 0:00:10]} 50. g4 {[%clk 0:00:50]}  fxg4+ {[%clk 0:00:09]} 51. Kxg4 {[%clk 0:00:51]}  Rg1+ {[%clk 0:00:09]} 52. Kf3 {[%clk 0:00:51]}  a4 {[%clk 0:00:08]} 53. Re2+ {[%clk 0:00:50]}  Kd6 {[%clk 0:00:07]} 54. Ke4 {[%clk 0:00:49]}  Rg3 {[%clk 0:00:04]} 55. Kd4 {[%clk 0:00:49]}  Kc6 {[%clk 0:00:03]} 56. Re6+ {[%clk 0:00:49]}  Kb7 {[%clk 0:00:03]} 57. Kc5 {[%clk 0:00:49]}  Rg2 {[%clk 0:00:03]} 58. Kxb5 {[%clk 0:00:49]}  Rxb2+ {[%clk 0:00:02]} 59. Kxa4 {[%clk 0:00:49]}  Rf2 {[%clk 0:00:02]} 60. Rf6 {[%clk 0:00:49]}  Rf3 {[%clk 0:00:02]} 61. Kb4 {[%clk 0:00:48]}  Kc7 {[%clk 0:00:02]} 62. c4 {[%clk 0:00:48]}  Kd7 {[%clk 0:00:03]} 63. c5 {[%clk 0:00:49]}  Ke7 {[%clk 0:00:03]} 64. Rxg6 {[%clk 0:00:49]}  Rxf4+ {[%clk 0:00:03]} 65. Kb5 {[%clk 0:00:50]}  Kd7 {[%clk 0:00:03]} 66. c6+ {[%clk 0:00:47]}  Kc8 {[%clk 0:00:03]} 67. a4 {[%clk 0:00:47]}  Rf2 {[%clk 0:00:02]} 68. a5 {[%clk 0:00:47]}  Rb2+ {[%clk 0:00:02]} 69. Ka6 {[%clk 0:00:46]}  Kc7 {[%clk 0:00:03]} 70. Ka7 {[%clk 0:00:46]}  Rb3 {[%clk 0:00:03]} 71. a6 {[%clk 0:00:46]}  Rb2 {[%clk 0:00:03]} 72. Rg7+ {[%clk 0:00:41]}  Kxc6 {[%clk 0:00:03]} 73. Rb7 {[%clk 0:00:42]}  Re2 {[%clk 0:00:02]} 74. Rb6+ {[%clk 0:00:36]}  Kc7 {[%clk 0:00:02]} 75. Rb1 {[%clk 0:00:36]} 1-0


[Site "https://www.chess.com"]

[Event "Titled Tuesday Blitz May 10 Early 2022"]
[White "Bluebaum, Matthias"]
[Black "Rohith Krishna S"]
[WhiteFideId "24651516"]
[BlackFideId "46617051"]
[WhiteElo "2556"]
[BlackElo "2117"]
[Result "1-0"]
[Round "03"]
[TimeControl "180+1"]
[Date "2022.05.10"]
[WhiteClock "0:00:08"]
[BlackClock "0:00:20"]

1. d4 {[%clk 0:02:58]}  d6 {[%clk 0:02:52]} 2. Nf3 {[%clk 0:02:54]}  Nf6 {[%clk 0:02:53]} 3. c4 {[%clk 0:02:47]}  g6 {[%clk 0:02:53]} 4. Nc3 {[%clk 0:02:47]}  Bg7 {[%clk 0:02:53]} 5. e4 {[%clk 0:02:48]}  O-O {[%clk 0:02:53]} 6. Be2 {[%clk 0:02:49]}  e5 {[%clk 0:02:53]} 7. Be3 {[%clk 0:02:49]}  Nc6 {[%clk 0:02:52]} 8. d5 {[%clk 0:02:49]}  Ne7 {[%clk 0:02:52]} 9. Nd2 {[%clk 0:02:50]}  a5 {[%clk 0:02:52]} 10. c5 {[%clk 0:02:50]}  Ne8 {[%clk 0:02:50]} 11. Nc4 {[%clk 0:02:46]}  f5 {[%clk 0:02:47]} 12. f3 {[%clk 0:02:41]}  Bd7 {[%clk 0:02:42]} 13. Rc1 {[%clk 0:02:35]}  Nc8 {[%clk 0:02:30]} 14. a4 {[%clk 0:02:20]}  fxe4 {[%clk 0:02:29]} 15. fxe4 {[%clk 0:02:19]}  Qh4+ {[%clk 0:02:24]} 16. g3 {[%clk 0:02:15]}  Qh3 {[%clk 0:02:25]} 17. Bf1 {[%clk 0:02:13]}  Qg4 {[%clk 0:02:20]} 18. Qxg4 {[%clk 0:02:12]}  Bxg4 {[%clk 0:02:21]} 19. Be2 {[%clk 0:02:11]}  Bd7 {[%clk 0:02:20]} 20. Nb5 {[%clk 0:02:05]}  Bf6 {[%clk 0:02:14]} 21. O-O {[%clk 0:01:49]}  Be7 {[%clk 0:02:10]} 22. Rxf8+ {[%clk 0:01:41]}  Kxf8 {[%clk 0:02:10]} 23. cxd6 {[%clk 0:01:32]}  cxd6 {[%clk 0:02:07]} 24. Nb6 {[%clk 0:01:29]}  Nxb6 {[%clk 0:02:01]} 25. Bxb6 {[%clk 0:01:30]}  Bd8 {[%clk 0:02:00]} 26. Be3 {[%clk 0:01:25]}  Rc8 {[%clk 0:01:51]} 27. Rxc8 {[%clk 0:01:17]}  Bxc8 {[%clk 0:01:52]} 28. Na3 {[%clk 0:01:06]}  Bd7 {[%clk 0:01:39]} 29. b3 {[%clk 0:01:00]}  Bc7 {[%clk 0:01:39]} 30. Bd2 {[%clk 0:00:38]}  Nf6 {[%clk 0:01:22]} 31. Bd3 {[%clk 0:00:38]}  Bg4 {[%clk 0:01:22]} 32. Nc4 {[%clk 0:00:28]}  Bf3 {[%clk 0:01:17]} 33. Bxa5 {[%clk 0:00:28]}  Bxa5 {[%clk 0:01:17]} 34. Nxa5 {[%clk 0:00:28]}  Nxe4 {[%clk 0:01:14]} 35. Nxb7 {[%clk 0:00:29]}  Ke7 {[%clk 0:01:14]} 36. a5 {[%clk 0:00:29]}  Nc3 {[%clk 0:01:14]} 37. Bc4 {[%clk 0:00:24]}  Nxd5 {[%clk 0:01:12]} 38. Kf2 {[%clk 0:00:22]}  Bh1 {[%clk 0:01:12]} 39. a6 {[%clk 0:00:19]}  Nc7 {[%clk 0:01:10]} 40. Na5 {[%clk 0:00:18]}  Ba8 {[%clk 0:01:08]} 41. b4 {[%clk 0:00:18]}  d5 {[%clk 0:01:08]} 42. Be2 {[%clk 0:00:18]}  Kd6 {[%clk 0:01:08]} 43. Ke3 {[%clk 0:00:12]}  d4+ {[%clk 0:01:08]} 44. Kd2 {[%clk 0:00:12]}  Nd5 {[%clk 0:01:05]} 45. Nc4+ {[%clk 0:00:10]}  Ke6 {[%clk 0:00:57]} 46. Bg4+ {[%clk 0:00:10]}  Kf6 {[%clk 0:00:56]} 47. Bf3 {[%clk 0:00:10]}  Ke6 {[%clk 0:00:52]} 48. Bxd5+ {[%clk 0:00:09]}  Bxd5 {[%clk 0:00:53]} 49. Nb6 {[%clk 0:00:10]}  Bf3 {[%clk 0:00:49]} 50. a7 {[%clk 0:00:10]}  Kd6 {[%clk 0:00:47]} 51. Nc4+ {[%clk 0:00:11]}  Ke6 {[%clk 0:00:46]} 52. b5 {[%clk 0:00:10]}  e4 {[%clk 0:00:42]} 53. b6 {[%clk 0:00:08]}  e3+ {[%clk 0:00:41]} 54. Kd3 {[%clk 0:00:08]}  Kf5 {[%clk 0:00:31]} 55. Nd6+ {[%clk 0:00:07]}  Ke5 {[%clk 0:00:28]} 56. b7 {[%clk 0:00:08]}  e2 {[%clk 0:00:20]} 57. Kd2 {[%clk 0:00:08]} 1-0


[Site "https://www.chess.com"]

[Event "Titled Tuesday Blitz May 10 Early 2022"]
[White "Bok, Benjamin"]
[Black "Nagy, Gabor"]
[WhiteFideId "1017063"]
[BlackFideId "737119"]
[WhiteElo "2658"]
[BlackElo "2569"]
[Result "1-0"]
[Round "03"]
[TimeControl "180+1"]
[Date "2022.05.10"]
[WhiteClock "0:00:15"]
[BlackClock "0:00:52"]

1. d4 {[%clk 0:03:00]}  Nf6 {[%clk 0:02:59]} 2. c4 {[%clk 0:03:01]}  c5 {[%clk 0:02:58]} 3. Nf3 {[%clk 0:03:00]}  cxd4 {[%clk 0:02:57]} 4. Nxd4 {[%clk 0:03:01]}  e5 {[%clk 0:02:53]} 5. Nb5 {[%clk 0:03:01]}  Nc6 {[%clk 0:02:51]} 6. Bg5 {[%clk 0:02:57]}  d6 {[%clk 0:02:44]} 7. Bxf6 {[%clk 0:02:57]}  gxf6 {[%clk 0:02:45]} 8. g3 {[%clk 0:02:57]}  a6 {[%clk 0:02:44]} 9. N5c3 {[%clk 0:02:57]}  Be6 {[%clk 0:02:45]} 10. Nd5 {[%clk 0:02:56]}  Rc8 {[%clk 0:02:43]} 11. Bg2 {[%clk 0:02:55]}  f5 {[%clk 0:02:42]} 12. O-O {[%clk 0:02:53]}  h5 {[%clk 0:02:41]} 13. Nbc3 {[%clk 0:02:42]}  h4 {[%clk 0:02:40]} 14. e3 {[%clk 0:02:42]}  Bg7 {[%clk 0:02:36]} 15. Qe2 {[%clk 0:02:38]}  Kf8 {[%clk 0:02:30]} 16. Rad1 {[%clk 0:02:37]}  hxg3 {[%clk 0:02:21]} 17. fxg3 {[%clk 0:02:37]}  Qg5 {[%clk 0:02:20]} 18. Rd2 {[%clk 0:01:50]}  Rd8 {[%clk 0:02:13]} 19. Rfd1 {[%clk 0:01:40]}  Rh6 {[%clk 0:02:08]} 20. Nb6 {[%clk 0:01:30]}  e4 {[%clk 0:02:00]} 21. Rxd6 {[%clk 0:01:21]}  Rxd6 {[%clk 0:02:01]} 22. Rxd6 {[%clk 0:01:22]}  Be5 {[%clk 0:01:59]} 23. Rd1 {[%clk 0:01:09]}  Kg7 {[%clk 0:01:33]} 24. Nbd5 {[%clk 0:01:07]}  Bb8 {[%clk 0:01:31]} 25. Nf4 {[%clk 0:01:02]}  Ne5 {[%clk 0:01:30]} 26. Ncd5 {[%clk 0:00:56]}  Bc8 {[%clk 0:01:25]} 27. b3 {[%clk 0:00:41]}  Ba7 {[%clk 0:01:21]} 28. Qb2 {[%clk 0:00:37]}  f6 {[%clk 0:01:18]} 29. c5 {[%clk 0:00:32]}  Rh8 {[%clk 0:01:14]} 30. b4 {[%clk 0:00:24]}  Qg4 {[%clk 0:01:11]} 31. Qe2 {[%clk 0:00:19]}  Qxe2 {[%clk 0:01:10]} 32. Nxe2 {[%clk 0:00:20]}  Be6 {[%clk 0:01:11]} 33. Nef4 {[%clk 0:00:20]}  Bf7 {[%clk 0:01:11]} 34. Ne7 {[%clk 0:00:18]}  Bxa2 {[%clk 0:01:03]} 35. Nxf5+ {[%clk 0:00:18]}  Kf7 {[%clk 0:01:04]} 36. Bxe4 {[%clk 0:00:18]}  a5 {[%clk 0:01:01]} 37. Ra1 {[%clk 0:00:15]}  Bb3 {[%clk 0:00:55]} 38. Rxa5 {[%clk 0:00:15]}  Bb8 {[%clk 0:00:55]} 39. Rb5 {[%clk 0:00:15]}  Ng4 {[%clk 0:00:52]} 40. Rxb7+ {[%clk 0:00:15]} 1-0


[Site "https://www.chess.com"]

[Event "Titled Tuesday Blitz May 10 Early 2022"]
[White "Broca Jimenez, Fernando"]
[Black "Ballester Llagaria, Luis Eduardo"]
[WhiteFideId "5104742"]
[BlackFideId "2297620"]
[WhiteElo "2062"]
[BlackElo "2344"]
[Result "0-1"]
[Round "03"]
[TimeControl "180+1"]
[Date "2022.05.11"]
[WhiteClock "0:02:13"]
[BlackClock "0:01:41"]

1. e4 {[%clk 0:03:00]}  c5 {[%clk 0:02:58]} 2. Nf3 {[%clk 0:02:59]}  b6 {[%clk 0:02:59]} 3. d4 {[%clk 0:02:59]}  cxd4 {[%clk 0:02:59]} 4. Nxd4 {[%clk 0:02:59]}  Bb7 {[%clk 0:03:00]} 5. f3 {[%clk 0:02:58]}  e6 {[%clk 0:02:59]} 6. c4 {[%clk 0:02:58]}  a6 {[%clk 0:02:55]} 7. Bd3 {[%clk 0:02:56]}  d5 {[%clk 0:02:46]} 8. exd5 {[%clk 0:02:51]}  Qh4+ {[%clk 0:02:44]} 9. Kf1 {[%clk 0:02:45]}  Qxd4 {[%clk 0:02:45]} 10. Nc3 {[%clk 0:02:45]}  Bc5 {[%clk 0:02:44]} 11. Qe2 {[%clk 0:02:44]}  Nf6 {[%clk 0:02:37]} 12. dxe6 {[%clk 0:02:34]}  O-O {[%clk 0:02:34]} 13. exf7+ {[%clk 0:02:33]}  Rxf7 {[%clk 0:02:35]} 14. Bg5 {[%clk 0:02:33]}  Nc6 {[%clk 0:02:04]} 15. Re1 {[%clk 0:02:26]}  Re8 {[%clk 0:01:59]} 16. Bxf6 {[%clk 0:02:25]}  Rxe2 {[%clk 0:01:52]} 17. Bxd4 {[%clk 0:02:21]}  Rxe1+ {[%clk 0:01:53]} 18. Kxe1 {[%clk 0:02:20]}  Bxd4 {[%clk 0:01:47]} 19. Nd5 {[%clk 0:02:21]}  Ne5 {[%clk 0:01:43]} 20. Be4 {[%clk 0:02:18]}  Nxc4 {[%clk 0:01:42]} 21. b3 {[%clk 0:02:17]}  Ne3 {[%clk 0:01:42]} 22. Ke2 {[%clk 0:02:13]}  Nxd5 {[%clk 0:01:41]} 0-1


[Site "https://www.chess.com"]

[Event "Titled Tuesday Blitz May 10 Early 2022"]
[White "Ceres, Dragos"]
[Black "Matveeva, Olga"]
[WhiteFideId "13905864"]
[BlackFideId "24107018"]
[WhiteElo "2150"]
[BlackElo "2052"]
[Result "1-0"]
[Round "03"]
[TimeControl "180+1"]
[Date "2022.05.11"]
[WhiteClock "0:00:11"]
[BlackClock "0:00:03"]

1. e4 {[%clk 0:03:00]}  e6 {[%clk 0:02:59]} 2. d3 {[%clk 0:03:00]}  d5 {[%clk 0:03:00]} 3. Nd2 {[%clk 0:02:59]}  Nf6 {[%clk 0:03:00]} 4. Ngf3 {[%clk 0:02:58]}  c5 {[%clk 0:02:59]} 5. g3 {[%clk 0:02:58]}  Nc6 {[%clk 0:03:00]} 6. Bg2 {[%clk 0:02:58]}  Be7 {[%clk 0:03:00]} 7. O-O {[%clk 0:02:59]}  O-O {[%clk 0:03:00]} 8. Re1 {[%clk 0:02:59]}  Qc7 {[%clk 0:02:59]} 9. e5 {[%clk 0:02:54]}  Nd7 {[%clk 0:02:58]} 10. Qe2 {[%clk 0:02:55]}  b5 {[%clk 0:02:58]} 11. Nf1 {[%clk 0:02:55]}  a5 {[%clk 0:02:57]} 12. h4 {[%clk 0:02:52]}  b4 {[%clk 0:02:57]} 13. h5 {[%clk 0:02:51]}  a4 {[%clk 0:02:56]} 14. h6 {[%clk 0:02:51]}  g6 {[%clk 0:02:55]} 15. Bf4 {[%clk 0:02:48]}  a3 {[%clk 0:02:49]} 16. b3 {[%clk 0:02:48]}  Bb7 {[%clk 0:02:42]} 17. Ne3 {[%clk 0:02:41]}  Nd4 {[%clk 0:02:39]} 18. Nxd4 {[%clk 0:02:41]}  cxd4 {[%clk 0:02:38]} 19. Ng4 {[%clk 0:02:42]}  Rfc8 {[%clk 0:02:34]} 20. Rac1 {[%clk 0:02:38]}  Qd8 {[%clk 0:02:31]} 21. Bd2 {[%clk 0:02:27]}  Rc7 {[%clk 0:02:09]} 22. Qd1 {[%clk 0:01:57]}  Rac8 {[%clk 0:02:08]} 23. Re2 {[%clk 0:01:58]}  Ba6 {[%clk 0:02:00]} 24. Be1 {[%clk 0:01:57]}  Nb8 {[%clk 0:01:32]} 25. f4 {[%clk 0:01:48]}  Nc6 {[%clk 0:01:31]} 26. Nh2 {[%clk 0:01:32]}  Na7 {[%clk 0:01:29]} 27. Nf3 {[%clk 0:01:30]}  Nb5 {[%clk 0:01:28]} 28. g4 {[%clk 0:01:22]}  Qf8 {[%clk 0:01:25]} 29. f5 {[%clk 0:01:08]}  Qxh6 {[%clk 0:01:13]} 30. Bd2 {[%clk 0:01:03]}  Qf8 {[%clk 0:01:12]} 31. f6 {[%clk 0:00:25]}  Bc5 {[%clk 0:01:11]} 32. Qe1 {[%clk 0:00:23]}  Nc3 {[%clk 0:01:09]} 33. Bxc3 {[%clk 0:00:18]}  dxc3+ {[%clk 0:01:09]} 34. d4 {[%clk 0:00:11]}  Bxe2 {[%clk 0:01:03]} 35. Qxe2 {[%clk 0:00:11]}  Ba7 {[%clk 0:01:01]} 36. Qe3 {[%clk 0:00:12]}  Rc6 {[%clk 0:00:35]} 37. Bf1 {[%clk 0:00:12]}  R6c7 {[%clk 0:00:24]} 38. Bd3 {[%clk 0:00:12]}  Rc6 {[%clk 0:00:17]} 39. Kg2 {[%clk 0:00:12]}  R6c7 {[%clk 0:00:07]} 40. Rh1 {[%clk 0:00:12]}  Rc6 {[%clk 0:00:05]} 41. Ng5 {[%clk 0:00:11]}  h6 {[%clk 0:00:03]} 42. Nf3 {[%clk 0:00:11]} 1-0


[Site "https://www.chess.com"]